{"text_format":"1","workbook":"xlsx","n_sheets":1,"sheets":["conceptos"],"not_rendered":{"charts":0,"images":2,"macros":1,"external_links":0,"defined_names":1,"comments":0,"pivot_tables":0},"unopened":[],"bounds":{"document_bytes":16777216,"sheet_cells":100000,"rows_first":2000,"rows_last":500,"rows_between":2000,"halvings":0,"cell_chars":16384,"cell_head_chars":4096},"cells_cut":0,"cells_raw":0,"read":"whole","date_system":"1900"}

{"sheet":"conceptos","index":0,"n_rows":175,"n_cols":8,"rows_kept":175,"cut":false,"hidden":false,"merged":[[172,0,172,4],[173,0,174,4],[13,0,13,6],[0,2,0,5],[9,2,9,5],[1,2,3,5],[4,2,4,3],[6,2,6,3],[7,2,7,3],[4,4,4,5],[5,4,5,5],[6,4,6,5],[7,4,7,5],[10,2,10,5],[11,2,11,5],[5,1,8,1]]}
[null,"GOBIERNO DEL ESTADO DE JALISCO","LICITACIÓN PÚBLICA ESTATAL"]
[null,"INSTITUTO DE LA INFRAESTRUCTURA FÍSICA EDUCATIVA DEL","E-REM-B-CON-06078-LP-0101-2020"]
[null,"ESTADO DE JALISCO"]
[]
[null,"DESCRIPCIÓN GENERAL DE LOS TRABAJOS:","FECHA DE INICIO:"]
[null,null,null,"FECHA DE TERMINACIÓN:"]
[null,null,"PLAZO DE EJECUCIÓN:"]
[null,null,"FECHA:"]
[]
[null,"RAZÓN SOCIAL DEL LICITANTE:","NOMBRE, CARGO Y FIRMA DEL LICITANTE:",null,null,null,"DOCUMENTO"]
[]
[]
[]
["PRESUPUESTO DE OBRA"]
[]
["CLAVE","DESCRIPCIÓN","UNIDAD","CANTIDAD","PRECIO UNITARIO ($)","PRECIO UNITARIO ($) CON LETRA","IMPORTE ($) M.N."]
["TRABAJO : BAS-CON-06078","TERMINACIÓN DE EDIFICIO “C” (ACABADOS Y CANCELERÍAS), CONSTRUCCIÓN DE CASETA PARA HIDRONEUMÁTICO E INSTALACIONES ELÉCTRICAS EN OBRA EXTERIOR, EN EL JARDÍN DE NIÑOS GABRIELA MISTRAL CCT 14DJN0484D, UBICADO EN LA LOCALIDAD VILLA DE GARCÍA MÁRQUEZ (EL TARENGO NUEVO), MUNICIPIO DE LA BARCA, JALISCO.",null,null,null,null,{"$f":"TEXT(SUM(G18 + G41 + G109 + G126 + G132), \"$ #,##0.00 ;\")","v":"$ 0.00 "}]
["C","EDIFICIO C",null,null,null,null,{"$f":"TEXT(SUM(G19 + G21 + G25 + G27 + G29 + G34 + G38), \"$ #,##0.00 ;\")","v":"$ 0.00 "}]
["C.01(355)","RECUBRIMIENTOS Y ACABADOS                         ",null,null,null,null,{"$f":"TEXT(SUM(G20:G20), \"$ #,##0.00 ;\")","v":"$ 0.00 "}]
[358052,"SUMINISTRO Y COLOCACION DE LOSETA CERAMICA PARA MURO ( AZULEJO ), PRENSADO EN SECO, CON RECUBRIMIENTO ESMALTADO DE COLOR, QUEMADO A BICOCCION A TEMPERATURAS DE 1,150 A 1200 °C,  CRAQUELADO, CALIDAD DE PRIMERA, QUE DEBERA CUMPLIR CON LAS SIGUIENTES CARACTERISTICAS TECNICAS: ABSORCION <= 15% , COEFICIENTE DE ESTATICO DE FRICCION >= 0.5, MODULO DE RUPTURA >= 180 KG/CM², RESISTENCIA A LA ADHESION >=50 P.S.I., RESISTENTE AL MANCHADO, RESISTENCIA AL RAYADO >= 4.0 MOHS, RESISTENTE A LOS QUIMICOS   ASENTADO CON PEGAZULEJO Y JUNTEDO CON JUNTEADOR BLANCO,  JUNTAS A HUESO, INCLUYE: TRAZO, CORTE, REMATES, ESCUADRE, DESPERDICIOS, DESPATINADO, EMBOQUILLADOS, CERTIFICADO DE CALIDAD, HERRAMIENTAS, MATERIALES,  MANO DE OBRA, LIMPIEZA Y ACARREO DE MATERIALES AL SITIO DE SU UTILIZACION, A CUALQUIER NIVEL.","M2 ","10.0000",0,"CERO PESOS 00/100 M.N.",0,259558]
["C.02(372)","PISOS                                             ",null,null,null,null,{"$f":"TEXT(SUM(G22:G24), \"$ #,##0.00 ;\")","v":"$ 0.00 "}]
[344511,"SUMINISTRO Y COLOCACION DE JUNTA DE CONTRACCION ELASTOMERICA. EN PISOS CON UNA SECCION TRANSVERSAL DE 6 X 10 MM, A BASE DE SILICON DE COLOR PARA JUNTAS DE DILATACION, INCLUYE: LIMPIEZA DEL AREA A TRATAR, DESPERDICIOS Y ACARREO DEL MATERIAL AL SITIO DE SU COLOCACION.","ML ","18.0000",0,"CERO PESOS 00/100 M.N.",0,259559]
[376146,"SUMINISTRO Y COLOCACION DE CENEFA DE 15.00 CM APROXIMADAMENTE A BASE DE  PISO DE LOSETA CERAMICA DE PRIMERA, QUE DEBERA CUMPLIR CON LAS SIGUIENTES CARACTERISTICAS TECNICAS: ABSORCION <= 3% , COEFICIENTE DE ESTATICO DE FRICCION >= 0.5, MODULO DE RUPTURA >= 300 KG/CM², PEI, RESISTENCIA A LA ABRASION VISIBLE 1500 CICLOS (PEI IV), RESISTENTE AL MANCHADO, RESISTENCIA AL RAYADO >= 5.0 MOHS, RESISTENTE A LOS QUIMICOS, ASENTADO CON PEGA PISO Y JUNTEADO CON JUNTEADOR DE COLOR, CON JUNTAS DE 4.00 MM. DE ANCHO MINIMO. INCLUYE: HERRAMIENTAS, MATERIALES, TRAZO, CORTES,  NIVELACION,  LIMPIEZA, DESPERDICIOS, MANO DE OBRA Y ACARREO DE MATERIALES AL SITIO DE SU UTILIZACION.","ML ","2.4000",0,"CERO PESOS 00/100 M.N.",0,259560]
[962162,"SUMINISTRO Y COLOCACION DE PISO DE  LOSETA CERAMICA DE 33 X 33 CM., MCA. INTERCERAMIC DE PRIMERA, LINEA NIZA, DE CUALQUIER COLOR, GRADO DE DUREZA (PEI) \"IV\" , ASENTADO CON PEGAPISO Y JUNTEDO CON JUNTEADOR DE COLOR,  JUNTAS DE 4 MM. DE ANCHO, INCLUYE: TRAZO, CORTE, REMATES, ESCUADRE, DESPERDICIOS, DESPATINADO, EMBOQUILLADOS, CERTIFICADO DE CALIDAD, HERRAMIENTAS, MATERIALES,  MANO DE OBRA, LIMPIEZA  Y ACARREO DE MATERIALES AL SITIO DE SU UTILIZACION, A CUALQUIER ALTURA.","M2 ","69.5000",0,"CERO PESOS 00/100 M.N.",0,259561]
["C.03(382)","ELEMENTOS COMPLEMENTARIOS DE ALBAÑILERIA          ",null,null,null,null,{"$f":"TEXT(SUM(G26:G26), \"$ #,##0.00 ;\")","v":"$ 0.00 "}]
[382551,"CONSTRUCCION  DE BANQUETON EN AULAS DE USOS MULTIPLES, DE 60 CM DE ANCHO, PARA LA COLOCACION DE COCINETA, (ESTRADO) FORJADO CON MURO DE BLOCK SOLIDO DE 11 X 14 X 28 CM, (1 HILADA) DE 11.0 CMS. DE ESPESOR, APLANADO CON MORTERO CEM-ARENA EN PROP: 1:4 Y LOSA DE CONCRETO F´C= 150 KG/CM2. DE 5 CM DE ESPESOR CON MALLA DE ACERO ELECTROSOLDADA DE 6X6 - 10/10, ACABADO APALILLADO, INCLUYE: RELLENO DE MATERIAL INERTE  DE 15 CM DE ESPESOR,  ACARREOS, BOLEADOS, REMATES, FILETES, LIMPIEZA,  MATERIALES, HERRAMIENTAS, NIVELECION, TRAZO Y MANO DE OBRA.","ML ","4.5000",0,"CERO PESOS 00/100 M.N.",0,259562]
["C.04(390)","CARPINTERIA                                       ",null,null,null,null,{"$f":"TEXT(SUM(G28:G28), \"$ #,##0.00 ;\")","v":"$ 0.00 "}]
[390187,"FABRICACION, SUMINISTRO E  INSTALACION DE COCINA INTEGRAL CON MEDIDAS GENERALES DE 4.50 MTS DE LARGO X 0.65 MTS., COMPUERTA POR 3 GABINETES DE SERVICIO DE 100 X 68 X 65CM., 1 GABINETE DE SERVICIO DE 50 X 68 X 65CM., 1 GABINETE PARA EMPOTRAR TARJA DE 100 X 68 X 65CM., 4 ALACENAS STANDARD DE 100 X 60 X 32.5CM., 1 ALACENA STANDARD DE 50 X 60 X 32.5CM., ELABORADAS CON ESTRUCTURA DE AGLOMERADO DE 16 MM. DE ESPESOR CON RECUBRIMIENTO MELAMINICO EN COLOR BLANCO, CUBIERTA EN AGLOMERADO DE 16 MM DE ESPESOR, ENGROSADO A 32 MM. CON EL MISMO MATERIAL Y RECUBIERTA CON FORMAICA EN TODAS SUS CARAS VISIBLES EN COLOR LIGT TAN MARBLE O PEARL WHITE BIRDSYE., FREGADERO DE UNA TARJA CON ESCURRIDERO EN ACERO INOXIDABLE, PARRILLA ELECTRICA DE DOS ZONAS  DE COCCIÓN, DE VITROCERAMICA, PARA EMPOTRAR, MCA. TEKA. MOD. VT TC 2P.1,  ACCIONAMIENTO A TRAVES DE MANDOS SENSITIVOS, POTENCIA NOMINAL MÁXIMA 3,000 W. 230 V /60 HZ.,  CON BLOQUEO DE SEGURIDAD Y AUTOAPAGADO, (AJUSTES EN OBRA), INCLUYE: PUERTAS, CAJONES Y FRENTES FABRICADOS EN MADERA MDF DE 19 MM. DE ESPESOR CUBIERTOS DE PVC ESPAÑOL EN COLOR CEREZO, CORREDERAS METALICAS BLANCAS CON RUEDAS DE NYLON, BISAGRAS, HERRAJES, TORNILLERIA, MATERIALES MENORES Y DE FIJACION,  DESPERDICIOS, TARJA,  PARRILLA, MEZCLADORA, CONEXIONES HIDRAULICAS Y SANITARIAS, CESPOL CROMADO, CONTRACANASTA, LLAVES ANGULARES, LIMPIEZA,  MANIOBRAS, FLETES, ACARREOS,  HERRAMIENTAS, MANO DE OBRA CALIFICADA.","PZA","1.0000",0,"CERO PESOS 00/100 M.N.",0,259563]
["C.05(393)","PINTURA                                           ",null,null,null,null,{"$f":"TEXT(SUM(G30:G33), \"$ #,##0.00 ;\")","v":"$ 0.00 "}]
[393010,"PINTURA VINIL-ACRÍLICA A BASE DE AGUA ACABADO SEMIMATE  LAVABLE, PARA INTERIORES Y EXTERIORES QUE NO DESPRENDA VAPORES TÓXICOS NI OLORES DESAGRADABLES, CON LAS SIGUIENTES CARACTERÍSTICAS ( SÓLIDOS POR PESO 46-52%, SÓLIDOS POR VOLUMEN 30-36%, VISCOSIDAD DE 100-130 UK A 25°C, DENSIDAD > O = 1.2 TON/M3., LAVABILIDAD > O = 4,000 CICLOS, TIEMPO DE SECADO AL TACTO, 30-40 MIN., TIEMPO DE SECADO DURO < O = 8 HRS., CICLO DE CURADO DE 7 DIAS, PH 6-8, RENDIMIENTO EN SUP. LISA 8-10 M2/LT., FINEZA DE MOLIDO (HEGMAN) 3-7 UH.)  EN CADENAS DE DESPLANTE, A UNA CARA, TRABAJO TERMINADO, A DOS MANOS, INCLUYE: MATERIALES MENORES Y DE CONSUMO, PREPARACION DE LA SUPERFICIE, SELLADO DE LA SUPERFICIE, HERRAMIENTAS, LIMPIEZA, MANO DE OBRA Y  ACARREOS DE MATERIALES AL SITIO DE SU UTILIZACION.","ML ","70.0000",0,"CERO PESOS 00/100 M.N.",0,259564]
[393022,"PINTURA VINIL-ACRÍLICA A BASE DE AGUA ACABADO SEMIMATE  LAVABLE, PARA INTERIORES Y EXTERIORES QUE NO DESPRENDA VAPORES TÓXICOS NI OLORES DESAGRADABLES, CON LAS SIGUIENTES CARACTERÍSTICAS ( SÓLIDOS POR PESO 46-52%, SÓLIDOS POR VOLUMEN 30-36%, VISCOSIDAD DE 100-130 UK A 25°C, DENSIDAD > O = 1.2 TON/M3., LAVABILIDAD > O = 4,000 CICLOS, TIEMPO DE SECADO AL TACTO, 30-40 MIN., TIEMPO DE SECADO DURO < O = 8 HRS., CICLO DE CURADO DE 7 DIAS, PH 6-8, RENDIMIENTO EN SUP. LISA 8-10 M2/LT., FINEZA DE MOLIDO (HEGMAN) 3-7 UH.)  EN MUROS APLANADOS DE MEZCLA APALILLADO O PULIDO, TRABAJO TERMINADO, A DOS MANOS, INCLUYE: MATERIALES MENORES Y DE CONSUMO, ANDAMIOS, PREPARACION DE LA SUPERFICIE, SELLADO DE LA SUPERFICIE, HERRAMIENTAS, LIMPIEZA, MANO DE OBRA Y  ACARREOS DE MATERIALES AL SITIO DE SU UTILIZACIÓN.","M2 ","100.0000",0,"CERO PESOS 00/100 M.N.",0,259565]
[393052,"PINTURA VINIL-ACRÍLICA A BASE DE AGUA ACABADO SEMIMATE  LAVABLE, PARA INTERIORES Y EXTERIORES QUE NO DESPRENDA VAPORES TÓXICOS NI OLORES DESAGRADABLES, CON LAS SIGUIENTES CARACTERÍSTICAS ( SÓLIDOS POR PESO 46-52%, SÓLIDOS POR VOLUMEN 30-36%, VISCOSIDAD DE 100-130 UK A 25°C, DENSIDAD > O = 1.2 TON/M3., LAVABILIDAD > O = 4,000 CICLOS, TIEMPO DE SECADO AL TACTO, 30-40 MIN., TIEMPO DE SECADO DURO < O = 8 HRS., CICLO DE CURADO DE 7 DIAS, PH 6-8, RENDIMIENTO EN SUP. LISA 8-10 M2/LT., FINEZA DE MOLIDO (HEGMAN) 3-7 UH.)  EN LOSAS Y ELEMENTOS DE CONCRETO, TRABAJO TERMINADO, A DOS MANOS, INCLUYE: MATERIALES MENORES Y DE CONSUMO, ANDAMIOS, PREPARACION DE LA SUPERFICIE DE CONCRETO, SELLADO DE LA SUPERFICIE, HERRAMIENTAS, LIMPIEZA, MANO DE OBRA Y  EQUIPO DE SEGURIDAD. A CUALQUIER ALTURA.","M2 ","150.0000",0,"CERO PESOS 00/100 M.N.",0,259566]
[393142,"PINTURA DE ESMALTE ALQUIDALICO ANTICORROSIVO, ACABADO BRILLANTE, PARA INTERIORES Y EXTERIORES QUE NO DESPRENDA VAPORES TÓXICOS NI OLORES DESAGRADABLES, CON LAS SIGUIENTES CARACTERÍSTICAS ( SÓLIDOS POR PESO 49-60%, SÓLIDOS POR VOLUMEN 40-46%, VISCOSIDAD DE 110-160 UK A 25°C, DENSIDAD 0.9-1.2 TON/M3., BRILLO A 60°C, 90%, TIEMPO DE SECADO AL TACTO, < O = 6 HRS., TIEMPO DE SECADO DURO < O = 24 HRS., ADHERENCIA 100%, RENDIMIENTO EN SUP. LISA 8-10 M2/LT., DILUCIÓN MÁXIMA (AGUARRÁS, THINER), 15 %,  EN HERRERIA ABIERTA DE PERFILES ESTRUCTURALES (PROTECCIONES), MEDIDA POR UN SOLO LADO, TRABAJO TERMINADO, A DOS MANOS, INCLUYE: MATERIALES MENORES Y DE CONSUMO, ANDAMIOS, PREPARACION DE LA SUPERFICIE, HERRAMIENTAS, LIMPIEZA, MANO DE OBRA Y  EQUIPO DE SEGURIDAD. A CUALQUIER NIVEL. (LA PINTURA ES POR AMBOS LADOS DE LA HERRERIA, PERO PARA SU PAGO ES MEDIDA SOLO POR 1 SOLO LADO).","M2 ","69.5000",0,"CERO PESOS 00/100 M.N.",0,259567]
["C.06(410)","CANCELERIA, HERRERIA, ALUMINIO, VIDRIOS Y CHAPAS  ",null,null,null,null,{"$f":"TEXT(SUM(G35:G37), \"$ #,##0.00 ;\")","v":"$ 0.00 "}]
[412004,"SUMINISTRO Y FABRICACION DE PROTECCIONES PARA VENTANERIA A BASE DE HERRERIA ESTRUCTURAL CON PERFIL CUADRADO Y/O REDONDO 1/2\" Y SOLERA DE 1/4\" X 1 1/2\", INCLUYE: CORTES, SOLDADURA, TALADROS, PINTURA DE TALLER,  AJUSTES Y DETALLES REALIZADOS EN OBRA DE ACUERDO A LO CONSTRUIDO,  ACARREOS, MATERIALES, DESPERDICIOS, HERRAMIENTAS Y EQUIPO NECESARIAS, MANO DE OBRA CALIFICADA Y TODO LO NECESARIO PARA SU CORRECTA EJECUCION.","KG ","620.0000",0,"CERO PESOS 00/100 M.N.",0,259568]
[412852,"COLOCACION DE HERRERIA TUBULAR Y/O ESTRUCTURAL SOLDADA Y/O ATORNILLADA A ESTRUCTURA Y REPISON EN CUALQUIER NIVEL, INCLUYE: PLOMEO, NIVELADO, AJUSTES Y ACARREO DE MATERIALES AL SITIO DE SU UTILIZACION","M2 ","69.5000",0,"CERO PESOS 00/100 M.N.",0,259569]
[422020,"SUMINISTRO Y COLOCACION DE PUERTA PREFABRICADA, CON MEDIDAS GENERALES DE 1.20 X 2.10 MTS.,  MCA. PORCELTECH O SIMILAR EN GARANTIA Y CALIDAD. MOD. BETA, TIPO TAMBOR DE 36 MM. DE ESPESOR, FABRICADA CON BASTIDOR DE PERFIL TUBULAR  GALVANIZADO DE 1 1/4\" , NUCLEO RELLENO CON PANEL HONEY COMB DE 1 3/8\" DE ESPESOR Y DOBLE CARA (INTERIOR-EXTERIOR) DE  LAMINA DE ACERO PORCELANIZADO CAL. 24,  EN COLOR INDICADO POR LA SUPERVISION Y CUBRECANTOS DE ALUMINIO ANODIZADO NATURAL , MARCO Y ANTEPECHO DE HERRERIA TUBULAR DE PERFILES COMERCIALES DE 3\" X 1 1/2\" CAL 14., TOPE DE ANGULO DE 3/4\" X 1/8\", INCLUYE: MARCO, HERRAJES, BISAGRAS, NIVELACION, PLOMEO, ELEMENTOS DE FIJACION, MATERIALES MENORES Y DE CONSUMO, SELLADO PERIMETRAL, HERRAMIENTAS, LIMPIZA, MANO DE OBRA, FLETES Y ACARREOS DE MATERIALES AL SITIO DE SU COLOCACION, EN CUALQUIER NIVEL.","PZA","2.0000",0,"CERO PESOS 00/100 M.N.",0,259570]
["C.07(510)","INSTALACION ELECTRICA EN EDIFICIO                 ",null,null,null,null,{"$f":"TEXT(SUM(G39:G40), \"$ #,##0.00 ;\")","v":"$ 0.00 "}]
[540306,"SUMINISTRO E INSTALACION DE CENTRO DE CARGA CAT. QO-612L-100,  DE 6 POLOS  100 AMPERES, INCLUYE: MATERIALES, ZAPATAS, MANO DE OBRA, HERRAMIENTAS, ELEMENTOS DE FIJACION, PRUEBAS,  ACARREOS Y MATERIALES MENORES.","PZA","1.0000",0,"CERO PESOS 00/100 M.N.",0,259571]
[542059,"SUMINISTRO Y COLOCACION DE CENTRO DE CARGA MARCA SQUARE- D TIPO QO-112L125G, 12 POLOS, 125 A. 1F, 3H, ZAPATAS, CAJA INTERIOR Y FRENTE QOC16U, INCLUYE: PRUEBAS, FLETES, MANO DE OBRA CALIFICADA, EQUIPO, HERRAMIENTA Y TODO LO NECESARIO PARA SU CORRECTA COLOCACION.","PZA","2.0000",0,"CERO PESOS 00/100 M.N.",0,259572]
[15,"CUARTO DE MAQUINAS",null,null,null,null,{"$f":"TEXT(SUM(G42 + G49 + G58 + G62 + G67 + G73 + G77 + G80 + G82 + G87 + G89 + G93 + G102), \"$ #,##0.00 ;\")","v":"$ 0.00 "}]
["15.01(150)","TRABAJOS PRELIMINARES                             ",null,null,null,null,{"$f":"TEXT(SUM(G43:G48), \"$ #,##0.00 ;\")","v":"$ 0.00 "}]
[150020,"LIMPIEZA DE TERRENO RETIRANDO BASURA Y DESHIERBE FUERA DE LA OBRA. INCLUYE: HERRAMIENTAS, MANO DE OBRA, RECOLECCION, JUNTA Y RETIRO. (PROYECCION DE CUBIERTA).","M2 ","6.3000",0,"CERO PESOS 00/100 M.N.",0,259573]
[150110,"TRAZO Y NIVELACION DE EDIFICIOS ESTABLECIENDO REFERENCIAS DEFINITIVAS, CON TRANSITO Y NIVEL (EQUIPO TOPOGRAFICO), INCLUYE: PERSONAL TECNICO CALIFICADO, ESTACAS, MOJONERAS, LOCALIZACION DE ENTRE EJES, BANCOS DE NIVEL, MATERIALES PARA SEÑALAMIENTO, EQUIPO, HERRAMIENTA Y MANO DE OBRA.","M2 ","6.3000",0,"CERO PESOS 00/100 M.N.",0,259574]
[150210,"DESPALME DE TERRENO NATURAL POR CUALQUIER MEDIO, CON ESPESOR PROMEDIO DE 20 CM. INCLUYE: CARGA Y ACARREO DEL PRODUCTO FUERA DE LA OBRA, MANO DE OBRA, HERRAMIENTA Y EQUIPO. (PROYECCION DE CUBIERTA).","M2 ","6.3000",0,"CERO PESOS 00/100 M.N.",0,259575]
[152204,"EXCAVACION EN CEPAS POR CUALQUIER MEDIO, MATERIAL TIPO \"B\", DE 0 A 2.00 M. DE PROFUNDIDAD, EN SECO, INCLUYE: AFINE DE TALUDES Y FONDO, TRASPALEOS,  MOVIMIENTOS Y ACARREOS DENTRO DE LA OBRA, HERRAMIENTAS Y MANO DE OBRA, MEDIDO EN BANCO.","M3 ","0.8200",0,"CERO PESOS 00/100 M.N.",0,259576]
[152404,"EXCAVACION A CIELO ABIERTO EN CAJON POR CUALQUIER MEDIO, MATERIAL TIPO \"B\", DE 0 A 2.00 M. DE PROFUNDIDAD, EN SECO, INCLUYE: AFINE DE TALUDES Y FONDO, TRAPALEOS,  MOVIMIENTOS Y ACARREOS DENTRO DE LA OBRA, HERRAMIENTAS Y MANO DE OBRA, MEDIDO EN BANCO.","M3 ","1.2600",0,"CERO PESOS 00/100 M.N.",0,259577]
[156002,"CARGA POR CUALQUIER MEDIO Y ACARREO EN CAMION DE MATERIAL DE DESPERDICIO PRODUCTO DE LAS EXCAVACIONES FUERA DE LA OBRA, A LUGAR PERMITIDO POR LAS AUTORIDADES CORRESPONDIENTES, MEDIDO EN BANCO. INCLUYE CARGA,  ACARREO Y DESCARGA A TIRO LIBRE, HERRAMIENTA, EQUIPO, MATERIALES DE CONSUMO Y MANO DE OBRA.","M3 ","1.7600",0,"CERO PESOS 00/100 M.N.",0,259578]
["15.02(160)","CIMENTACION                                       ",null,null,null,null,{"$f":"TEXT(SUM(G50:G57), \"$ #,##0.00 ;\")","v":"$ 0.00 "}]
[162002,"CIMIENTO DE PIEDRA BRAZA ACOMODADA PIEDRA POR PIEDRA, ASENTADA CON MORTERO CEMENTO-ARENA  EN PROPORCION 1:3. INCLUYE: MATERIALES, DESPERDICIOS, HERRAMIENTAS, LIMPIEZA, MANO DE OBRA Y ACARREO DE MATERIALES AL SITIO DE SU UTILIZACION.","M3 ","1.5000",0,"CERO PESOS 00/100 M.N.",0,259579]
[162404,"NIVELACION DE MURO DE MAMPOSTERIA CON RAJUELA DE PIEDRA BRAZA JUNTEADA CON MORTERO CEM-ARE 1:3. DE 0.10 M. DE ESPESOR X 0.40 M. DE ANCHO PROMEDIO. INCLUYE: NIVELACION, TRAZO, MANO DE OBRA Y HERRAMIENTA. (NO INCLUYE MATERIALES)","ML ","6.2500",0,"CERO PESOS 00/100 M.N.",0,259580]
[167220,"DALA DE DESPLANTE DE CONCRETO F´C= 150 KG/CM2, T.M.A.= 3/4\", CON SECCION DE 14 X 25 CM., ARMADA CON 4 VARILLAS DEL #3 Y ESTRIBOS DEL #2 @ 20 CM., INCLUYE: ARMADO, COLADO, CURADO, VIBRADO, CIMBRA COMUN, DESCIMBRA, DESPERDICIOS, TRASLAPES, CRUCES DE VARILLAS CON ELEMENTOS TRANSVERSALES, ANDAMIOS, MANO DE OBRA, HERRAMIENTA Y ACARREO DE MATERIALES AL SITIO DE SU UTILIZACION, A CUALQUIER ALTURA.","ML ","5.9900",0,"CERO PESOS 00/100 M.N.",0,259581]
[167514,"DALA DE CONCRETO EN REMATE DE CIMENTACION, F'C=250 KG/CM2, T.M.A.=3/4\", CON SECCION DE 40 X 15 CMS., ARMADA CON 4 VARILLAS DEL # 4 Y ESTRIBOS DEL # 3 @ 20 CMS., INCLUYE: ARMADO, COLADO, CURADO, VIBRADO, CIMBRA COMUN, DESCIMBRA, DESPERDICIOS, MANO DE OBRA, HERRAMIENTA Y ACARREO DE MATERIALES AL SITIO DE SU UTILIZACION.","ML ","2.9900",0,"CERO PESOS 00/100 M.N.",0,259582]
[180002,"RELLENO EN CEPAS POR CUALQUIER MEDIO, CON MATERIAL PRODUCTO DE EXCAVACION, COMPACTADO AL 90% PROCTOR, EN CAPAS DE 20 CM, MEDIDO COMPACTO. INCLUYE: SUMINISTRO DE AGUA PARA LOGRAR HUMEDAD OPTIMA, TENDIDO, TRASPALEOS,  EQUIPO, PRUEBAS DE COMPACTACION, AFINE, NIVELACION, HERRAMIENTAS, MANO DE OBRA Y  ACARREO HASTA EL SITIO DE SU COLOCACION. (MEDIDO EN BANCO).","M3 ","0.3200",0,"CERO PESOS 00/100 M.N.",0,259583]
[180102,"RELLENO COMPACTADO AL 90 % PROCTOR, CON MATERIAL DE BANCO, EN CAPAS DE 20 CM DE ESPESOR, AGREGANDO AGUA PARA LOGRAR SU HUMEDAD OPTIMA, AL 90%. POR CUALQUIER MEDIO, INCLUYE: SUMINISTRO DE AGUA PARA LOGRAR HUMEDAD OPTIMA, TENDIDO, TRASPALEOS,  DESPERDICIOS, EQUIPO, PRUEBAS DE COMPACTACION, AFINE, NIVELACION, HERRAMIENTAS, MANO DE OBRA Y  ACARREO HASTA EL SITIO DE SU COLOCACION.  (VOLUMEN MEDIDO COMPACTADO).","M3 ","3.4700",0,"CERO PESOS 00/100 M.N.",0,259584]
[192862,"BASE PARA CASTILLO DE 40 X 40 X 40 CM, EN CIMENTACION DE PIEDRA, CON CONCRETO F'C=150 KG/CM2, TMA=3/4\", CON 4 VARILLAS DE 3/8\" DE DIAMETRO Y ESTRIBOS DE 1/4\" @ 20.0 CM. CIMBRA COMUN,  INCLUYE: CIMBRADO Y DESCIMBRADO, COLADO, VIBRADO, CURADO, MATERIALES, DESPERDICIOS, HERRAMIENTAS, LIMPIEZA, MANO DE OBRA Y ACARREO DE MATERIALES AL SITIO DE SU UTILIZACION.","PZA","4.0000",0,"CERO PESOS 00/100 M.N.",0,259585]
[916979,"IMPERMEABILIZACION DE DALAS DE DESPLANTE 3 CARAS CON PRODUCTOS FESTER, CON EL SIGUIENTE PROCEDIMIENTO: 1 CAPA APLICANDO MICROPRIMMER A RAZON DE 1.00 LTS X 2.50 ML, UNA CAPA DE TELA DE REFUERZO FESTERFLEX MARCA FESTER, ASEGURANDOSE UNA CORRECTA ADHERENCIA CON EL PRODUCTO ANTES APLICADO, Y OTRA APLICACION DE MICROPRIMMER CON LA MISMA PROPORCION ANTES MENCIONADA, ACABADO CON ARENA CERNIDA PARA LA CORRECTA ADHERENCIA DEL MORTERO, INCLUYE: ACARREOS Y ELEVACIONES DE LOS MATERIALES A CUALQUIER NIVEL, HERRAMIENTA Y MANO DE OBRA.","ML ","6.7200",0,"CERO PESOS 00/100 M.N.",0,259586]
["15.03(200)","ESTRUCTURA                                        ",null,null,null,null,{"$f":"TEXT(SUM(G59:G61), \"$ #,##0.00 ;\")","v":"$ 0.00 "}]
[210322,"CIMBRA DE MADERA, ACABADO APARENTE, EN LOSAS, INCLUYE: HABILITADO, CHAFLANES, CIMBRA, DESCIMBRA, GOTEROS, HERRAMIENTAS, LIMPIEZAS, MANO DE OBRA  Y ACARREO DE MATERIALES AL SITIO DE SU UTILIZACION, A CUALQUIER NIVEL.","M2 ","7.5200",0,"CERO PESOS 00/100 M.N.",0,259587]
[213003,"SUMINISTRO, HABILITADO, ARMADO Y COLOCACION DE ACERO DE REFUERZO FY=4,200 KG/CM2 (G.E.), DE 3/8\" (# 3 ), EN ESTRUCTURA, INCLUYE: MATERIALES, HABILITADO,  DOBLECES,  SILLETAS, ALAMBRE, GANCHOS, ESCUADRAS, TRASLAPES, DESPERDICIOS HERRAMIENTAS, MANO DE OBRA Y ACARREO DE MATERIALES AL SITIO DE SU COLOCACION.","KG ","51.2700",0,"CERO PESOS 00/100 M.N.",0,259588]
[216401,"SUMINISTRO Y COLOCACION DE CONCRETO HECHO EN OBRA, F'C=200 KG/CM2, T.M.A.= 3/4, R.N., EN ESTRUCTURA (COLUMNAS, TRABES, LOSAS, FALDONES, ETC), INCLUYE: MATERIALES, COLADO, AFINE, ACABADO, CURADO CON CURACRETO ROJO, VIBRADO, DESPERDICIO, HERRAMIENTAS, LIMPIEZA, MANO DE OBRA. A CUALQUIER NIVEL.","M3 ","0.7600",0,"CERO PESOS 00/100 M.N.",0,259589]
["15.04(310)","MUROS, CADENAS, CASTILLOS Y REPIZONES.            ",null,null,null,null,{"$f":"TEXT(SUM(G63:G66), \"$ #,##0.00 ;\")","v":"$ 0.00 "}]
[310212,"DALA DE CONCRETO F'C=150 KG/CM2, T.M.A.=3/4\", CON SECCION DE 14 X 20 CMS., ARMADA CON 4 VARILLAS DEL # 3 Y ESTRIBOS DEL NO. 2 @ 20 CMS., INCLUYE:  ARMADO, COLADO, CURADO, VIBRADO, CIMBRA COMUN, DESCIMBRA, TRASLAPES, CRUCES DE VARILLAS CON ELEMENTOS TRANSVERSALES, DESPERDICIOS, MANO DE OBRA, HERRAMIENTA Y ACARREO DE MATERIALES AL SITIO DE SU UTILIZACION, A CUALQUIER ALTURA.","ML ","8.7200",0,"CERO PESOS 00/100 M.N.",0,259590]
[310536,"DALA DE CONCRETO F'C=150 KG/CM2, T.M.A.=3/4\", CON SECCION DE 14 X 10 CMS., SIN ARMAR, INCLUYE: COLADO, CURADO, VIBRADO, CIMBRA APARENTE, DESCIMBRA, DESPERDICIOS, MANO DE OBRA, HERRAMIENTA Y ACARREO DE MATERIALES AL SITIO DE SU UTILIZACION, A CUALQUIER ALTURA.","ML ","6.7200",0,"CERO PESOS 00/100 M.N.",0,259591]
[312210,"CASTILLO DE CONCRETO F´C= 150 KGS/CM2 CON UNA SECCION DE 14 X 15 CM., ARMADO CON 4 VARILLAS DEL #3, ESTRIBOS DEL #2@15 CM.  INCLUYE: ARMADO, COLADO, CURADO, VIBRADO, CIMBRA COMUN, DESCIMBRA, TRASLAPES, CRUCES DE VARILLAS CON ELEMENTOS TRANSVERSALES, DESPERDICIOS, MANO DE OBRA, HERRAMIENTA Y ACARREO DE MATERIALES AL SITIO DE SU UTILIZACION, A CUALQUIER ALTURA.","ML ","9.6000",0,"CERO PESOS 00/100 M.N.",0,259592]
[314032,"MURO DE TABIQUE DE LAMA, DE 14 CMS. DE ESPESOR PROMEDIO, A SOGA, CON TABIQUE DE LAMA 7 X 14 X 28 CMS., ACABADO COMUN, ASENTADO CON MORTERO CEMENTO-ARENA EN PROPORCION 1:3, EN CUALQUIER NIVEL, INCLUYE: TRAZO, NIVELACION, PLOMEO, ANDAMIOS, DESPERDICIOS, MANO DE OBRA, LIMPIEZA Y ACARREO DE MATERIALES AL SITIO DE SU UTILIZACION.","M2 ","13.8400",0,"CERO PESOS 00/100 M.N.",0,259593]
["15.05(319)","ENTREPISOS, CUBIERTA Y ACABADOS DE AZOTEA         ",null,null,null,null,{"$f":"TEXT(SUM(G68:G72), \"$ #,##0.00 ;\")","v":"$ 0.00 "}]
[216582,"SUMINISTRO Y COLOCACION DE GARGOLA DE CONCRETO PREFABRICADA TIPO NAPRESA O SIMILAR, DE 22X40 CMS. PARA DESAGUE PLUVIAL, AMACIZADA CON MORTERO CEM-ARENA DE RIO 1:4, INCLUYE: MATERIALES PARA COLOCACION, ELEVACION, NIVELACION, HERRAMIENTAS, MANO DE OBRA Y ACARREOS AL SITIO DE SU COLOCACION.","PZA","1.0000",0,"CERO PESOS 00/100 M.N.",0,259594]
[322049,"ENTORTADO DE JALCRETO F´C= 100 KG/CM2, AGREGANDO IMPERMEABILIZANTE INTEGRAL A RAZON DE 1 KG/ 50 KG DE CEMENTO DE, DE 5.0 CM DE ESPESOR PROMEDIO, PARA DAR PENDIENTES EN ENTREPISOS Y AZOTEAS, ACABADO  APALILLADO FINO EN FORMA INTEGRAL (SIN PASTA), PARA RECIBIR IMPERMEABILIZANTE,  INCLUYE: MATERIALES, NIVELACION,  ELEVACIONES, DESPERDICIOS, HERRAMIENTAS,  LIMPIEZA, MANO DE OBRA Y ACARREOS AL SITIO DE SU COLOCACION, EN CUALQUIER NIVEL.","M2 ","5.1400",0,"CERO PESOS 00/100 M.N.",0,259595]
[324232,"FORJADO DE ZAVALETA EN AZOTEA A BASE DE JALCRETO SIMPLE F´C=100 KG/CM2, DE 15 CM POR LADO, A 45°, CON ACABADO APALILLADO, INCLUYE: MATERIALES, DESPERDICIOS, HERRAMIENTAS, EQUIPO DE SEGURIDAD, LIMPIEZA, MANO DE OBRA Y ACARREO DE MATERIALES AL LUGAR DE SU UTILIZACION A CUALQUIER NIVEL.","ML ","9.2200",0,"CERO PESOS 00/100 M.N.",0,259596]
[324332,"FORJADO DE PRETIL EN AZOTEA A BASE DE TABIQUE ROJO RECOCIDO DE 7 X 14 X 28 CM. A SOGA, DE 14 CM DE ESPESOR,  ASENTADO CON MORTERO DE  CEMENTO-CAL ARENA EN PROPORCION DE 1:2:6, INCLUYE: MATERIALES, DESPERDICIOS, NIVELACION, PLOMEO,  ELEVACIONES, HERRAMIENTAS, FLETES, LIMPIEZAS, MANO DE OBRA Y ACAREOS DE MATERIALES AL SITIO DE SU UTILIZACION. A CUALQUIER NIVEL.","M2 ","4.3400",0,"CERO PESOS 00/100 M.N.",0,259597]
[344125,"IMPERMEABILIZACION DE MUROS O LOSAS, A BASE DE MEMBRANA PREFABRICADA, MCA. IMPERQUIMIA, UNIPLAS AERO PLUS SBS, ALTO DESEMPEÑO CON VENTILACION ANTIABOLSAMIENTOS, FABRICADA A BASE DE ASFALTOS MODIFICADOS CON POLIMEROS SINTETICOS SBS (ESTIRENO BUTADIENO ESTIRENO) REFORZADA CON MALLA POLIESTER DE ALTA RESISTENCIA, ACABADO APARENTE A BASE DE GRAVILLA ESMALTADA A FUEGO, 4.5 MM  DE ESPESOR TOTAL, COLOR ROJO TERRACOTA, GARANTIA POR ESCRITO DE 10 AÑOS, POR LA EMPRESA CONTRATISTA., INCLUYE: LIMPIEZA Y PREPARACION DE LA SUPERFICIE, APLICACION DE PRIMER IMPERCOAT PRIMARIO SL, PARA ANCLAJE Y TAPAPORO DE LA SUPERFICIE, SELLADO DE FISURAS Y GRIETAS A BASE DE CEMENTO PLASTICO BITUMINOSO IMPERCOAT CEMENTO SBS, SUMINISTRO Y COLOCACION DE MEMBRANA POR MEDIO DE TERMOFUSION A BASE DE FUEGO DE SOPLETE DE GAS BUTANO, HACIENDO TRASLAPES MINIMOS DE 0.10 MTS. EN AMBOS SENTIDOS, SELLADO DE ORILLAS, REMATES Y TRASLAPES, MATERIALES MENORES Y DE CONSUMO, CORTES, DESPERDICIOS, LIMPIEZA GENERAL, HERRAMIENTAS, MANO DE OBRA ESPECIALIZADA Y ACARREOS AL SITIO DE SU COLOCACION.","M2 ","5.1400",0,"CERO PESOS 00/100 M.N.",0,259598]
["15.06(355)","RECUBRIMIENTOS Y ACABADOS                         ",null,null,null,null,{"$f":"TEXT(SUM(G74:G76), \"$ #,##0.00 ;\")","v":"$ 0.00 "}]
[355022,"APLANADO DE MUROS Y/O TECHOS CON MORTERO CEMENTO-CAL-ARENA DE RIO EN PROP. 1:2:6 DE 2 CM. DE ESPESOR PROMEDIO, A PLOMO Y REGLA, ACABADO APALILLADO FINO, INCLUYE: MATERIALES, DESPERDICIOS, ANDAMIOS, HERRAMIENTAS, PLOMEO, NIVELACION, REMATES, LIMPIEZA DEL AREA DE TRABAJO Y ACARREO DE MATERIALES AL SITIO DE SU UTILIZACION. A CUALQUIER NIVEL.\n","M2 ","45.2000",0,"CERO PESOS 00/100 M.N.",0,259599]
[357322,"BOQUILLAS EN PUERTAS Y VENTANAS, CON MORTERO CEMENTO-CAL-ARENA 1:2:6, INCLUYE: ANDAMIOS Y ACARREO DE MATERIALES AL SITIO DE SU UTILIZACION.","ML ","20.8000",0,"CERO PESOS 00/100 M.N.",0,259600]
[357352,"FILETES Y BOLEADOS, HECHOS CON MORTERO CEMENTO-CAL-ARENA EN PROPORCION 1:2:6, INCLUYE: DESPERDICIOS, ANDAMIOS Y ACARREO DE MATERIALES AL SITIO DE SU UTILIZACION, A CUALQUIER NIVEL.","ML ","13.4000",0,"CERO PESOS 00/100 M.N.",0,259601]
["15.07(372)","PISOS                                             ",null,null,null,null,{"$f":"TEXT(SUM(G78:G79), \"$ #,##0.00 ;\")","v":"$ 0.00 "}]
[373026,"PISO DE CONCRETO HECHO EN OBRA F'C=200 KG/CM2, TMA 3/4\", DE 10 CMS. DE ESPESOR, ACABADO RAYADO CON BROCHA, EN FORMA INTERGRAL, SIN UTILIZACION DE PASTA, COLADO A CUADROS, CON REFUERZO DE MALLA ELECTROSOLDADA 6-6 / 10-10, INCLUYE: TRAZO, NIVELACION, AFINE Y COMPACTACION DEL TERRENO, MATERIALES, CIMBRA DE FRONTERA, DESCIMBRA, DESPERDICIOS, CURADO, VIBRADO, MUESTREADO, JUNTAS FRIAS, VOLTEADOR,  HERRAMIENTAS, MANO DE OBRA Y ACARREOS DE MATERIALES AL SITIO DE SU UTILIZACION.","M2 ","3.6700",0,"CERO PESOS 00/100 M.N.",0,259602]
[373502,"CEJA DE CONCRETO F'C=150 KG/CM2, TMA=3/4\" DE 12.0 X 18.0 CM DE SECCION PROMEDIO, ARMADA CON 1 VARILLA #3 (3/8\") Y ESTRIBOS DE 1/4\" @ 25.0 CM, EN CUALQUIER NIVEL. INCLUYE: CIMBRA APARENTE, DESCIMBRA, COLADO, VIBRADO, CURADO, PERFILADO, CHAFLANES, GOTERO, LIMPIEZA, HERRAMIENTAS, MATERIALES, DESPERDICIOS Y MANO DE OBRA.","ML ","6.3000",0,"CERO PESOS 00/100 M.N.",0,259603]
["15.08(382)","ELEMENTOS COMPLEMENTARIOS DE ALBAÑILERIA          ",null,null,null,null,{"$f":"TEXT(SUM(G81:G81), \"$ #,##0.00 ;\")","v":"$ 0.00 "}]
[382053,"BASE DE CONCRETO F'C=150 KG/CM, DE 15 CM DE ALTURA., ARMADA CON  VARILLAS DE 3/8\"@20 CM. EN AMBOS SENTIDOS, PARA COLOCACION DE EQUIPOS DE EN GENERAL,  ACABADO APALILLADO, INCLUYE: MATERIALES, COLADO, VIBRADO, CURADO, CIMBRA Y DESCIMBRA, NIVELACION,  DESPERDICIOS, REMATES,  HERRAMIENTAS, LIMPIEZA, MANO DE OBRA  Y ACARREO DE MATERIAL AL SITIO DE SU UTILIZACION, A CUALQUIER NIVEL.","M2 ","2.0000",0,"CERO PESOS 00/100 M.N.",0,259604]
["15.09(393)","PINTURA                                           ",null,null,null,null,{"$f":"TEXT(SUM(G83:G86), \"$ #,##0.00 ;\")","v":"$ 0.00 "}]
[393010,"PINTURA VINIL-ACRÍLICA A BASE DE AGUA ACABADO SEMIMATE  LAVABLE, PARA INTERIORES Y EXTERIORES QUE NO DESPRENDA VAPORES TÓXICOS NI OLORES DESAGRADABLES, CON LAS SIGUIENTES CARACTERÍSTICAS ( SÓLIDOS POR PESO 46-52%, SÓLIDOS POR VOLUMEN 30-36%, VISCOSIDAD DE 100-130 UK A 25°C, DENSIDAD > O = 1.2 TON/M3., LAVABILIDAD > O = 4,000 CICLOS, TIEMPO DE SECADO AL TACTO, 30-40 MIN., TIEMPO DE SECADO DURO < O = 8 HRS., CICLO DE CURADO DE 7 DIAS, PH 6-8, RENDIMIENTO EN SUP. LISA 8-10 M2/LT., FINEZA DE MOLIDO (HEGMAN) 3-7 UH.)  EN CADENAS DE DESPLANTE, A UNA CARA, TRABAJO TERMINADO, A DOS MANOS, INCLUYE: MATERIALES MENORES Y DE CONSUMO, PREPARACION DE LA SUPERFICIE, SELLADO DE LA SUPERFICIE, HERRAMIENTAS, LIMPIEZA, MANO DE OBRA Y  ACARREOS DE MATERIALES AL SITIO DE SU UTILIZACION.","ML ","13.4400",0,"CERO PESOS 00/100 M.N.",0,259605]
[393022,"PINTURA VINIL-ACRÍLICA A BASE DE AGUA ACABADO SEMIMATE  LAVABLE, PARA INTERIORES Y EXTERIORES QUE NO DESPRENDA VAPORES TÓXICOS NI OLORES DESAGRADABLES, CON LAS SIGUIENTES CARACTERÍSTICAS ( SÓLIDOS POR PESO 46-52%, SÓLIDOS POR VOLUMEN 30-36%, VISCOSIDAD DE 100-130 UK A 25°C, DENSIDAD > O = 1.2 TON/M3., LAVABILIDAD > O = 4,000 CICLOS, TIEMPO DE SECADO AL TACTO, 30-40 MIN., TIEMPO DE SECADO DURO < O = 8 HRS., CICLO DE CURADO DE 7 DIAS, PH 6-8, RENDIMIENTO EN SUP. LISA 8-10 M2/LT., FINEZA DE MOLIDO (HEGMAN) 3-7 UH.)  EN MUROS APLANADOS DE MEZCLA APALILLADO O PULIDO, TRABAJO TERMINADO, A DOS MANOS, INCLUYE: MATERIALES MENORES Y DE CONSUMO, ANDAMIOS, PREPARACION DE LA SUPERFICIE, SELLADO DE LA SUPERFICIE, HERRAMIENTAS, LIMPIEZA, MANO DE OBRA Y  ACARREOS DE MATERIALES AL SITIO DE SU UTILIZACIÓN.","M2 ","45.2000",0,"CERO PESOS 00/100 M.N.",0,259606]
[393052,"PINTURA VINIL-ACRÍLICA A BASE DE AGUA ACABADO SEMIMATE  LAVABLE, PARA INTERIORES Y EXTERIORES QUE NO DESPRENDA VAPORES TÓXICOS NI OLORES DESAGRADABLES, CON LAS SIGUIENTES CARACTERÍSTICAS ( SÓLIDOS POR PESO 46-52%, SÓLIDOS POR VOLUMEN 30-36%, VISCOSIDAD DE 100-130 UK A 25°C, DENSIDAD > O = 1.2 TON/M3., LAVABILIDAD > O = 4,000 CICLOS, TIEMPO DE SECADO AL TACTO, 30-40 MIN., TIEMPO DE SECADO DURO < O = 8 HRS., CICLO DE CURADO DE 7 DIAS, PH 6-8, RENDIMIENTO EN SUP. LISA 8-10 M2/LT., FINEZA DE MOLIDO (HEGMAN) 3-7 UH.)  EN LOSAS Y ELEMENTOS DE CONCRETO, TRABAJO TERMINADO, A DOS MANOS, INCLUYE: MATERIALES MENORES Y DE CONSUMO, ANDAMIOS, PREPARACION DE LA SUPERFICIE DE CONCRETO, SELLADO DE LA SUPERFICIE, HERRAMIENTAS, LIMPIEZA, MANO DE OBRA Y  EQUIPO DE SEGURIDAD. A CUALQUIER ALTURA.","M2 ","7.5200",0,"CERO PESOS 00/100 M.N.",0,259607]
[393122,"PINTURA DE ESMALTE ALQUIDALICO ANTICORROSIVO, ACABADO BRILLANTE, PARA INTERIORES Y EXTERIORES QUE NO DESPRENDA VAPORES TÓXICOS NI OLORES DESAGRADABLES, CON LAS SIGUIENTES CARACTERÍSTICAS ( SÓLIDOS POR PESO 49-60%, SÓLIDOS POR VOLUMEN 40-46%, VISCOSIDAD DE 110-160 UK A 25°C, DENSIDAD 0.9-1.2 TON/M3., BRILLO A 60°C, 90%, TIEMPO DE SECADO AL TACTO, < O = 6 HRS., TIEMPO DE SECADO DURO < O = 24 HRS., ADHERENCIA 100%, RENDIMIENTO EN SUP. LISA 8-10 M2/LT., DILUCIÓN MÁXIMA (AGUARRÁS, THINER), 15 %,  EN HERRERIA CERRADA (DUELA DE LAMINA ACANALADA), TRABAJO TERMINADO, A DOS MANOS, INCLUYE: MATERIALES MENORES Y DE CONSUMO, ANDAMIOS, PREPARACION DE LA SUPERFICIE, HERRAMIENTAS, LIMPIEZA, MANO DE OBRA Y  EQUIPO DE SEGURIDAD. A CUALQUIER NIVEL.","M2 ","9.8000",0,"CERO PESOS 00/100 M.N.",0,259608]
["15.10(396)","LIMPIEZA                                          ",null,null,null,null,{"$f":"TEXT(SUM(G88:G88), \"$ #,##0.00 ;\")","v":"$ 0.00 "}]
[396012,"LIMPIEZA DE PISOS DE CONCRETO CON AGUA Y ACIDO MURIATICO AL 10%.","M2 ","3.6700",0,"CERO PESOS 00/100 M.N.",0,259609]
["15.11(410)","CANCELERIA, HERRERIA, ALUMINIO, VIDRIOS Y CHAPAS  ",null,null,null,null,{"$f":"TEXT(SUM(G90:G92), \"$ #,##0.00 ;\")","v":"$ 0.00 "}]
[412013,"SUMINISTRO, FABRICACION Y COLOCACION DE HERRERIA TUBULAR Y/O ESTRUCTURAL, INCLUYE: SOLDADURA, ELEMENTOS DE FIJACION, MATERIALES MENORES, DESCALIBRES, DESPERDICIOS, BISAGRAS, FONDO ANTICORROSIVO, FLETES, HERRAMIENTAS, EQUIPO, MANO DE OBRA  Y ACARREO DE MATERIALES AL SITIO DE SU UTLIZACION.","KG ","115.0000",0,"CERO PESOS 00/100 M.N.",0,259610]
[424043,"SUMINISTRO Y COLOCACION DE CHAPA PHILLIPS X-720 O AS-725, INCLUYE: PERFORACIONES, ELEMENTOS DE FIJACION, HERRAMIENTAS, MANO DE OBRA Y  ACARREO DE MATERIAL AL SITIO DE SU UTILIZACION.","PZA","1.0000",0,"CERO PESOS 00/100 M.N.",0,259611]
[424082,"SUMINISTRO Y COLOCACION DE CERRADURA DE SOBREPONER DE SEGURIDAD CON UN SOLO CILINDRO DE ACCION POR AMBOS LADOS TIPO BARRA, MCA. PHILLIPS MODELO 800 FD, INCLUYE: ELEMANTOS DE FIJACION, AJUSTES PRUEBAS, HERRAMIENTAS Y MANO DE OBRA.","PZA","1.0000",0,"CERO PESOS 00/100 M.N.",0,259612]
["15.12(511)","INSTALACION ELECTRICA EN OBRA EXTERIOR            ",null,null,null,null,{"$f":"TEXT(SUM(G94:G101), \"$ #,##0.00 ;\")","v":"$ 0.00 "}]
[514034,"SALIDA ELECTRICA DE CENTRO AISLADA OCULTA, CON TUBERIA Y CONEXIONES CONDUIT DE PVC. PESADO  DE AJUSTE DE 13 Y 19 MM. DE DIAMETRO, CABLE VINANEL THW-LS 600 V. A 75° C, 90° C, MARCA CONDUCTORES MONTERREY, (VIAKON-PROTOCOLIZADO), CABLE VINANEL 21 THW-LS 600 V. A 75° C, 90° C, MARCA CONDUMEX (CONDUMEX PROTOCOLIZADO).  CALIBRE 12 EN FASES Y 12 EN TIERRA FISICA, CAJAS DE REGISTRO  CUADRADAS, CHALUPAS Y TAPAS DE  PVC REFORZADO., INCLUYE: TRAZO, RANURAS, MATERIALES MENORES, HERRAMIENTA, MANO DE OBRA ESPECIALIZADA , CONEXIONES, LIMPIEZA DEL AREA DE TRABAJO, PRUEBAS, DESPERDICIOS Y ACARREO DEL MATERIAL AL SITIO DE SU COLOCACION, EN CUALQUIER NIVEL.","SAL","1.0000",0,"CERO PESOS 00/100 M.N.",0,259613]
[518044,"SALIDA ELECTRICA PARA CONTACTO DUPLEX POLARIZADO, OCULTA, CON TUBERIA Y CONEXIONES CONDUIT DE PVC. PESADO DE 13 Y 19 MM. DE DIAMETRO,  CABLE VINANEL THW-LS 600 V. A 75° C, 90° C, MARCA CONDUCTORES MONTERREY, (VIAKON-PROTOCOLIZADO), CABLE VINANEL 21 THW-LS 600 V. A 75° C, 90° C, MARCA CONDUMEX (CONDUMEX PROTOCOLIZADO)., CALIBRE 10 Y 12, CAJAS DE REGISTRO  CUADRADAS, CHALUPAS Y TAPAS DE PVC REFORZADO, CONTACTO QUINZIÑO, TAPA DE ALUMINIO, INCLUYE: TRAZO, RANURAS, CONEXION A TIERRA, ACCESORIOS, MATERIALES MENORES Y DE CONSUMO, PRUEBAS, DESPERDICIOS Y ACARREO DEL MATERIAL AL SITIO DE SU COLOCACION, A CUALQUIER NIVEL.","SAL","1.0000",0,"CERO PESOS 00/100 M.N.",0,259614]
[522034,"SALIDA ELECTRICA PARA  APAGADOR DOBLE, OCULTA, CON TUBERIA Y CONEXIONES CONDUIT DE PVC TIPO PESADO DE 13 Y 19 MM. DE DIAMETRO, CABLE VINANEL THW-LS 600 V. A 75° C, 90° C, MARCA CONDUCTORES MONTERREY, (VIAKON-PROTOCOLIZADO), CABLE VINANEL 21 THW-LS 600 V. A 75° C, 90° C, MARCA CONDUMEX (CONDUMEX PROTOCOLIZADO). CALIBRE 12, CAJAS CUADRADAS, CHALUPAS Y TAPAS DE PVC, APAGADORES QUINZIÑO, TAPA DE ALUMINIO, INCLUYE: MATERIALES MENORES, PRUEBAS, DESPERDICIOS Y ACARREO DEL MATERIAL AL SITIO DE SU COLOCACION, A CUALQUIER NIVEL.","SAL","1.0000",0,"CERO PESOS 00/100 M.N.",0,259615]
[524526,"ALIMENTACION ELECTRICA DE FUERZA PARA SISTEMA DE EQUIPO HIDRONEUMATICO, CON TUBERIA Y CONEXIONES CONDUIT GALV. P.G. ROSCADA DE  25 MM. DE DIAMETRO,  Y TUBO LIQUATITE DE 1\" DE DIAM.,  CABLE VINANEL THW-LS 600 V. A 75° C, 90° C, MARCA CONDUCTORES MONTERREY, (VIAKON-PROTOCOLIZADO), CABLE VINANEL 21 THW-LS 600 V. A 75° C, 90° C, MARCA CONDUMEX (CONDUMEX PROTOCOLIZADO). CALIBRES 10, CONDULET RECTANGULAR FSC CON TAPA Y EMPAQUE,  INCLUYE: TRAZO,  MATERIALES MENORES, CONEXIONES, CONECTORES, HERRAMIENTAS,  PRUEBAS, CORTES, AJUSTES,  DESPERDICIOS, LIMPIEZAS,  MANO DE OBRA ESPECIALIZADA,  Y ACARREO DEL MATERIAL AL SITIO DE SU COLOCACION. (LONGITUD CONSIDERADA DESDE EL TABLERO DE ALIMENTACION AL TABLERO DEL EQUIPO, DENTRO DEL CUARTO)","SAL","1.0000",0,"CERO PESOS 00/100 M.N.",0,259616]
[542059,"SUMINISTRO Y COLOCACION DE CENTRO DE CARGA MARCA SQUARE- D TIPO QO-112L125G, 12 POLOS, 125 A. 1F, 3H, ZAPATAS, CAJA INTERIOR Y FRENTE QOC16U, INCLUYE: PRUEBAS, FLETES, MANO DE OBRA CALIFICADA, EQUIPO, HERRAMIENTA Y TODO LO NECESARIO PARA SU CORRECTA COLOCACION.","PZA","1.0000",0,"CERO PESOS 00/100 M.N.",0,259627]
[543012,"SUMINISTRO Y COLOCACION DE INTERRUPTOR TERMOMAGNETICO DERIVADO CON 1 POLOS, DE 15-60 AMPERES, MCA. SQUARE D, CAT. QO. INCLUYE: PRUEBAS, MATERIALES MENORES, HERRAMIENTAS, MANO DE OBRA ESPECIALIZADA  Y ACARREO DE MATERIALES AL SITIO DE SU COLOCACION.","PZA","2.0000",0,"CERO PESOS 00/100 M.N.",0,259628]
[543020,"SUMINISTRO Y COLOCACION DE INTERRUPTOR TERMOMAGNETICO CON 2 POLOS, DE 15-50 AMPERES, MCA. SQUARE D, CAT. QO. INCLUYE: PRUEBAS, FLETES, MATERIALES MENORES Y ACARREO DE MATERIALES AL SITIO DE SU COLOCACION.","PZA","2.0000",0,"CERO PESOS 00/100 M.N.",0,259629]
[550090,"SUMINISTRO E INSTALACION DE LUMINARIO FLUORESCENTE DE SOBREPONER, TIPO ENVOLVENTE, AHORRADOR DE ENERGIA DE 2 X 32 WATTS. FABRICADO EN LAMINA CAL 22, RECUBIERTO CON TRATAMIENTO FOSFATIZADO Y PINTURA ACRILICA O POLIESTER COLOR BLANCO, APLICADA ELECTROSTATICAMENTE Y TERMOENDURECIDA, PARA OBTENER UNA REFLECTANCIA MINIMA DE 90%, CON DIFUSOR ACRILICO PRISMATICO 100% PURO, TIPO ENVOLVENTE, CON UNA LONGITUD DE 120 CM., BALASTRO ELECTRONICO DE BAJA EMISION DE ARMONICAS, PARA OPERAR UNA O DOS LAMPARAS T8 DE 32 WATTS, LA LUMINARIA (COMPLETA) DEBERA CUMPLIR CON LA NORMA ANCE, INCLUYE: COPIA DE CERTIFICACION ANCE ANEXA EN ELTRAMITE DE LA ESTIMACION, FIJACION, CONEXION, MATERIALES MENORES, HERRAMIENTAS, GARANTIAS,  MANO DE OBRA, PRUEBAS Y ACARREOS.","PZA","1.0000",0,"CERO PESOS 00/100 M.N.",0,259630]
["15.13(565)","INSTALACION HIDRAULICA, SANITARIA Y GAS EN O. EXT.",null,null,null,null,{"$f":"TEXT(SUM(G103:G108), \"$ #,##0.00 ;\")","v":"$ 0.00 "}]
[579030,"SUCCION PARA LLENADO DE HIDRONEUMATICO A BASE DE TUBERIA DE COBRE DE 1 1/4\" A 1 1/2\" , DESDE LA CISTERNA HASTA EL EQUIPO DE BOMBEO, (DE ACUERDO A GUIAS DE INSTALACION PROPORCIONADAS POR CAPECE) CONSIDERANDO UNA DISTANCIA PROMEDIO DE 10 MTS. DESDE LA UBICACION DE LA CISTERNA AL EQUIPO HIDRONEUMATICO,  INCLUYE: TRAZO, EXCAVACIONES, RELLENOS,  ENCOFRACO CON CONCRETO F'C=100 KG/CM2, LINEAS DE SUCCION, LINEA DE RETORNO PARA PRUEBAS, PICHANCHA DE 1 1/2\", VALVULAS,  MATERIALES MENORES, DESPERDICIOS, CONEXIONES, PRUEBAS, LIMPIEZA,  Y ACARREO DE TODOS LOS MATERIALES AL SITIO DE SU UTILIZACION.","PZA","1.0000",0,"CERO PESOS 00/100 M.N.",0,259636]
[585006,"SUMINISTRO Y COLOCACION DE TUBO DE P.V.C. SANITARIO (ANGER),1 CAMPANA DE 2\" (50 MM) DIAM., INCLUYE: CONEXIONES, TRAZO, EXCAVACION, RELLENO COMPACTADO, DESPERDICIOS, PRUEBAS, PASOS EN CIMENTACION Y ACARREO DE MATERIALES AL SITIO DE SU COLOCACION.","ML ","2.5000",0,"CERO PESOS 00/100 M.N.",0,259638]
[589317,"SUMINISTRO Y TENDIDO DE TUBERIA DE CPVC-CTS, PARA CEMENTAR  DE 50 MM DE DIAM. INCLUYE: TRAZO, CONEXIONES (COPLES, CODOS, TEES, NIPLES, ETC), DESPERDICIOS, ENCOFRADO CON CONCRETO F'C=100 KG/CM2 DE 6 X 15 CMS DE SECCION, MATERIALES MENORES Y DE CONSUMO, PRUEBAS, EXCAVACION, RELLENO, HERRAMIENTAS, MANO DE OBRA Y ACARREO DE MATERIALES AL SITIO DE SU COLOCACION.","ML ","2.5000",0,"CERO PESOS 00/100 M.N.",0,259645]
[591414,"SUMINISTRO Y COLOCACION DE VALVULA DE ESFERA (BOLA) EXTREMOS ROSCADOS 2\" (51 MM) DE DIAMETRO. MCA URREA, FIG. 550,  INCLUYE: MATERIALES MENORES Y DE CONSUMO, HERRAMIENTAS, PRUEBAS, LIMPIEZA, MANO DE OBRA Y ACARREOS DE MATERIALES AL SITIO DE SU COLOCACION.","PZA","1.0000",0,"CERO PESOS 00/100 M.N.",0,259647]
[592012,"SUMINISTRO Y COLOCACION DE CESPOL BOTE DE P.V.C. CON REJILLA CROMADA. INCLUYE: MATERIALES MENORES Y DE CONSUMO, HERRAMIENTAS, DESPERDICIOS, PRUEBAS, MANO DE OBRA Y ACARREO DE MATERIALES AL SITIO DE SU COLOCACION.","PZA","1.0000",0,"CERO PESOS 00/100 M.N.",0,259648]
[918592,"SUMINISTRO Y COLOCACION DE EQUIPO DE BOMBEO INTEGRADO DE VELOCIDAD VARIABLE A PRESION CONSTANTE,  MARCA VICTORIA, RAINFORCE  MOD. RF2B3-200VV, CONSTRUIDO CON DOS MOTOBOMBA CENTRIFUGAS ELECTRICAS, MCA. VICTORIA, MOD. AF3-200 CWN, DE 1 1/2\" EN LA SUCCION POR 1 1/2\" EN LA DESCARGA, ACOPLADA DIRECTAMENTE A MOTOR ELECTRICO DE 2 HP., 220-440 V., 3 FASES, 60 HZ, 3500 RPM, TABLERO DE CONTROL INTELIGENTE CON VARIADOR DE VELOCIDAD, PROTECCIONES POR BAJO Y ALTO VOLTAJE, CORTO CIRCUITO, SISTEMA DE ARRANQUE SUAVE, DESCARGA Y FUNCIONAMIENTO EN SECO SELLADO HERMETICAMENTE,  DOS TANQUES PRECARGADOS DE DIAFRAGMA, MCA. VICTORIA DE 4.4 GALONES DE CAPACIDAD, INCLUYE: CABEZAL DE DESCARGA EN FIERRO GRIS DE 3\" DE DIAMETRO EXTREMO BRIDADO, CHASIS METALICO, MANOMETRO ANALOGO, SENSOR DE PRESION,  MATERIALES MENORES Y DE CONSUMO, CONEXIONES HIDRAULICAS Y ELECTRICAS, BRIDA DE FO.FO. DE 3\" CON UN EXTREMO ROSCADO, VALVULA PARA PRECARGADO DE CIERRE RAPIDO, HERRAMIENTAS, CALIBRACION, PRUEBAS, PUESTA EN MARCHA, MANUAL DE OPERACION, GARANTIAS POR ESCRITO, LIMPIEZA TRASLADOS AL SITIO DE SU INSTALACION Y MANO DE OBRA ESPACIALIZACA.","PZA","1.0000",0,"CERO PESOS 00/100 M.N.",0,259652]
["02","RED ELECTRICA",null,null,null,null,{"$f":"TEXT((G110), \"$ #,##0.00 ;\")","v":"$ 0.00 "}]
["02.01(511)","INSTALACION ELECTRICA EN OBRA EXTERIOR            ",null,null,null,null,{"$f":"TEXT(SUM(G111:G125), \"$ #,##0.00 ;\")","v":"$ 0.00 "}]
[534004,"SUMINISTRO Y TENDIDO DE TUBO CONDUIT DE P.V.C. PESADO, DE 19 MM DIAM. INCLUYE: CONEXIONES, TRAZO, EXCAVACION, RELLENO, DESPERDICIOS, MATERIALES MENORES, PRUEBAS Y ACARREO AL SITIO DE SU COLOCACION.","ML ","140.0000",0,"CERO PESOS 00/100 M.N.",0,259617]
[534006,"SUMINISTRO Y TENDIDO DE TUBO CONDUIT DE P.V.C. PESADO, DE 25 MM DIAM. INC.: CONEXIONES, TRAZO, EXCAVACION, RELLENO, DESPERDICIOS, MATERIALES MENORES, PRUEBAS Y ACARREO AL SITIO DE SU COLOCACION.","ML ","140.0000",0,"CERO PESOS 00/100 M.N.",0,259618]
[534008,"SUMINISTRO Y TENDIDO DE TUBO CONDUIT DE P.V.C. PESADO, DE 32 MM DIAM. INC.: CONEXIONES, TRAZO, EXCAVACION, RELLENO, DESPERDICIOS, MATERIALES MENORES, PRUEBAS Y ACARREO AL SITIO DE SU COLOCACION.","ML ","140.0000",0,"CERO PESOS 00/100 M.N.",0,259619]
[536008,"SUMINISTRO Y COLOCACION DE CABLE VINANEL THW-LS 600 V. A 75° C, 90° C, MARCA CONDUCTORES MONTERREY, (VIAKON-PROTOCOLIZADO), CABLE VINANEL 21 THW-LS 600 V. A 75° C, 90° C, MARCA CONDUMEX (CONDUMEX PROTOCOLIZADO). CAL. 10,  INCLUYE: DESPERDICIOS, MATERIALES MENORES, HERRAMIENTA, CONEXIONES, MANO DE OBRA ESPECIALIZADA, LIMPIEZA DEL AREA DE TRABAJO, PRUEBAS Y ACARREO AL SITIO DE SU COLOCACION.","ML ","350.0000",0,"CERO PESOS 00/100 M.N.",0,259620]
[536012,"SUMINISTRO Y COLOCACION DE CABLE VINANEL THW-LS 600 V. A 75° C, 90° C, MARCA CONDUCTORES MONTERREY, (VIAKON-PROTOCOLIZADO), CABLE VINANEL 21 THW-LS 600 V. A 75° C, 90° C, MARCA CONDUMEX (CONDUMEX PROTOCOLIZADO). CAL. 6,  INCLUYE: DESPERDICIOS, MATERIALES MENORES, HERRAMIENTA, CONEXIONES, MANO DE OBRA ESPECIALIZADA, LIMPIEZA DEL AREA DE TRABAJO, PRUEBAS Y ACARREO AL SITIO DE SU COLOCACION.","ML ","280.0000",0,"CERO PESOS 00/100 M.N.",0,259621]
[536014,"SUMINISTRO Y COLOCACION DE CABLE VINANEL THW-LS 600 V. A 75° C, 90° C, MARCA CONDUCTORES MONTERREY, (VIAKON-PROTOCOLIZADO), CABLE VINANEL 21 THW-LS 600 V. A 75° C, 90° C, MARCA CONDUMEX (CONDUMEX PROTOCOLIZADO). CAL. 4,  INCLUYE: DESPERDICIOS, MATERIALES MENORES, HERRAMIENTA, CONEXIONES, MANO DE OBRA ESPECIALIZADA, LIMPIEZA DEL AREA DE TRABAJO, PRUEBAS Y ACARREO AL SITIO DE SU COLOCACION.","ML ","287.1000",0,"CERO PESOS 00/100 M.N.",0,259622]
[536016,"SUMINISTRO Y COLOCACION DE CABLE VINANEL THW-LS 600 V. A 75° C, 90° C, MARCA CONDUCTORES MONTERREY, (VIAKON-PROTOCOLIZADO), CABLE VINANEL 21 THW-LS 600 V. A 75° C, 90° C, MARCA CONDUMEX (CONDUMEX PROTOCOLIZADO). CAL. 2,  INCLUYE: DESPERDICIOS, MATERIALES MENORES, HERRAMIENTA, CONEXIONES, MANO DE OBRA ESPECIALIZADA, LIMPIEZA DEL AREA DE TRABAJO, PRUEBAS Y ACARREO AL SITIO DE SU COLOCACION.","ML ","70.0000",0,"CERO PESOS 00/100 M.N.",0,259623]
[537108,"SUMINISTRO Y COLOCACION DE CABLE DE COBRE DESNUDO CAL. 10, AWG, MCA. CONDUMEX, CONELEC O CONDUCTORES MONTERREY. INCLUYE: DESPERDICIOS, MATERIALES MENORES, PRUEBAS Y ACARREO AL SITIO DE SU COLOCACION.","ML ","350.0000",0,"CERO PESOS 00/100 M.N.",0,259624]
[537114,"SUMINISTRO Y COLOCACION DE CABLE DE COBRE DESNUDO CAL. 6, AWG, MCA. CONDUMEX, CONELEC O CONDUCTORES MONTERREY. INCLUYE: DESPERDICIOS, MATERIALES MENORES, PRUEBAS Y ACARREO AL SITIO DE SU COLOCACION.","ML ","7.0000",0,"CERO PESOS 00/100 M.N.",0,259625]
[540305,"SUMINISTRO E INSTALACION DE CENTRO DE CARGA CAT. QO-816L-100,  DE 8 POLOS  100 AMPERES, INCLUYE: MATERIALES, ZAPATAS, MANO DE OBRA, HERRAMIENTAS, ELEMENTOS DE FIJACION, PRUEBAS,  ACARREOS Y MATERIALES MENORES.","PZA","2.0000",0,"CERO PESOS 00/100 M.N.",0,259626]
[558091,"MURETE PARA ACOMETIDA ELECTRICA DE PARA PRIMARIA Y/O JARDIN DE NIÑOS DE 1.90 MT DE ALTURA POR 0.94 MTS. DE ANCHO Y 0.60 MT. DE FONDO, A BASE DE MURO DE LAMA DE 7 X 14 X 28 A TEZON EN PARTE INFERIOR Y A SOGA EN EL AREA DESTINADA PARA LA CAJA DE SOQUET DE MEDICION E INTERRUPTORES, DALAS Y CASTILLOS  DE CONCRETO F´C=150 KG/CM2, DALA DE DESPLANTE APARENTE DE 28 X 10 CM. LOSAS Y MUROS DE CONCRETO F´C= 150 KG/CM2., INCLUYE: SUM. Y COLOCACION DE BASE SOQUET (5 X 100) BIFASICA DE 100 A. MCA. C.H. O SIMILAR EMPOTRADA EN MURETE,  EXCAVACION, CIMENTACION DE PIEDRA, BASES PARA CASTILLOS,  ACERO DE REFUERZO PARA MUROS, DALAS, CASTIILLOS Y LOSAS, APLANADO, PINTURA VINILICA Y ESMALTE, PERFORACIONES, REGISTRO ELECTRICO, TUBERIAS CONDUIT GALV. PG. PARA CONEXION A PREPARACION AEREA DE MUFA YTUBERIA CONDUIT DE PVC. PESADO PARA CONEXION A REGISTRO DE DISTRIBUCION, SEÑALIZACION DEL MURETE, PUERTAS METALICAS,  MATERIALES, HERRAMIENTAS, LIMPIEZA Y MANO DE OBRA.","PDA","1.0000",0,"CERO PESOS 00/100 M.N.",0,259631]
[880618,"SUMINISTRO Y COLOCACION DE REGISTRO ELECTRICO PARA ALUMBRADO, PREFABRICADO  DE 0.40 X 0.40 X 0.60 MTS. CON TAPA DE CONCRETO,  MARCO Y CONTRAMARCO DE FIERRO GALVANIZADO, INCLUYE: TRAZO, EXCAVACION, TAPA DE CONCRETO CON MARCO Y CONTRAMARCO DE ANGULO, RELLENO, FILTRO DE GRAVA, HERRAMIENTAS, MANO DE OBRA, FLETES, ACARREO AL SITIO DE SU COLOCACION Y LIMPIEZA DEL AREA DE TRABAJO.","PZA","4.0000",0,"CERO PESOS 00/100 M.N.",0,259632]
[880618,"SUMINISTRO Y COLOCACION DE REGISTRO ELECTRICO PARA ALUMBRADO, PREFABRICADO  DE 0.40 X 0.40 X 0.60 MTS. CON TAPA DE CONCRETO,  MARCO Y CONTRAMARCO DE FIERRO GALVANIZADO, INCLUYE: TRAZO, EXCAVACION, TAPA DE CONCRETO CON MARCO Y CONTRAMARCO DE ANGULO, RELLENO, FILTRO DE GRAVA, HERRAMIENTAS, MANO DE OBRA, FLETES, ACARREO AL SITIO DE SU COLOCACION Y LIMPIEZA DEL AREA DE TRABAJO.","PZA","2.0000",0,"CERO PESOS 00/100 M.N.",0,259633]
[880621,"SUMINISTRO Y COLOCACION DE REGISTRO ELECTRICO DE CONCRETO, PREFABRICADO, PARA BAJA TENSION TIPO 1 NORMA C.F.E.- RBTB-1 DE 50 X 80 X 65 CM., CON TAPA DE CONCRETO,  MARCO Y CONTRAMARCO  DE ACERO GALVANIZADO, INCLUYE: TRAZO, EXCAVACION, RELLENOS COMPACTADOS, FILTRO DE GRAVA, RESANADO FINO DE TUBERIAS EN SU INTERIOR, HERRAMIENTAS, MANO DE OBRA, FLETES, ACARREO AL SITIO DE SU COLOCACION Y LIMPIEZA DEL AREA DE TRABAJO.","PZA","8.0000",0,"CERO PESOS 00/100 M.N.",0,259634]
[880754,"TRAMITE ANTE C.F.E. POR AMPLIACION DE CARGA CONTRATADA. INCLUYE: TRAMITE Y TODOS LOS CARGOS NECESARIOS PARA EL PERMISO.","PDA","1.0000",0,"CERO PESOS 00/100 M.N.",0,259635]
["03","RED SANITARIA",null,null,null,null,{"$f":"TEXT((G127), \"$ #,##0.00 ;\")","v":"$ 0.00 "}]
["03.01(565)","INSTALACION HIDRAULICA, SANITARIA Y GAS EN O. EXT.",null,null,null,null,{"$f":"TEXT(SUM(G128:G131), \"$ #,##0.00 ;\")","v":"$ 0.00 "}]
[585006,"SUMINISTRO Y COLOCACION DE TUBO DE P.V.C. SANITARIO (ANGER),1 CAMPANA DE 2\" (50 MM) DIAM., INCLUYE: CONEXIONES, TRAZO, EXCAVACION, RELLENO COMPACTADO, DESPERDICIOS, PRUEBAS, PASOS EN CIMENTACION Y ACARREO DE MATERIALES AL SITIO DE SU COLOCACION.","ML ","15.0000",0,"CERO PESOS 00/100 M.N.",0,259637]
[585010,"SUMINISTRO Y COLOCACION DE TUBO DE P.V.C. SANITARIO (ANGER) SERIE 20, CAMPANA, DE 4\" (100 MM) DIAM., INCLUYE: CONEXIONES, TRAZO, EXCAVACION, CAMA DE ARENA, RELLENO COMPACTADO, DESPERDICIOS, PRUEBAS, PASOS POR CIMENTACION Y ACARREO DE MATERIALES AL SITIO DE SU COLOCACION.","ML ","35.0000",0,"CERO PESOS 00/100 M.N.",0,259639]
[596030,"REGISTRO SANITARIO DE 0.60 X 0.40 X 0.60 M, CON MURO DE LADRILLO DE LAMA DE 5.5 X 11.0 X 22.0 CM, ASENTADO CON MORTERO CEMENTO-ARENA 1:3, APLANADO CON MORTERO CEMENTO-ARENA DE RIO 1:3, TAPA DE CONCRETO F'C=200 KG/CM2, MARCO Y CONTRAMARCO DE ANGULO DE 1 1/2\" X 1/8\", DESPERDICIOS Y ACARREO DE MATERIALES AL SITIO DE SU UTILIZACION.","PZA","4.0000",0,"CERO PESOS 00/100 M.N.",0,259649]
[596032,"REGISTRO SANITARIO DE 0.60 X 0.40 X 0.80 M, CON MURO DE LADRILLO DE LAMA DE 5.5 X 11.0 X 22.0 CM, ASENTADO CON MORTERO CEMENTO-ARENA 1:3, APLANADO CON MORTERO CEMENTO-ARENA DE RIO 1:3, INCLUYE: TRAZO, EXCAVACIONES, NIVELACION, RELLENO CON MATERIAL PRODUCTO DE EXCAVACION, RETIRO DE MATERIAL EXCEDENTE FUERA DE LA OBRA, TAPA DE CONCRETO F'C=200 KG/CM2, MARCO Y CONTRAMARCO DE ANGULO DE 1 1/2\" X 1/8\", MATERIALES, DESPERDICIOS, HERRAMIENTAS, MANO DE OBRA, LIMPIEZA, RETIRO DE MATERIAL PRODUCTO DE EXCAVACION FUERA DE LA OBRA Y ACARREO DE MATERIALES AL SITIO DE SU UTILIZACION.","PZA","4.0000",0,"CERO PESOS 00/100 M.N.",0,259650]
["04","RED HIDRAULICA",null,null,null,null,{"$f":"TEXT((G133), \"$ #,##0.00 ;\")","v":"$ 0.00 "}]
["04.01(565)","INSTALACION HIDRAULICA, SANITARIA Y GAS EN O. EXT.",null,null,null,null,{"$f":"TEXT(SUM(G134:G141), \"$ #,##0.00 ;\")","v":"$ 0.00 "}]
[589312,"SUMINISTRO Y TENDIDO DE TUBERIA DE CPVC-CTS, PARA CEMENTAR  DE 13 MM DE DIAM. INCLUYE: TRAZO, CONEXIONES (COPLES, CODOS, TEES, NIPLES, ETC), DESPERDICIOS, ENCOFRADO CON CONCRETO F'C=100 KG/CM2 DE 6 X 15 CMS DE SECCION, MATERIALES MENORES Y DE CONSUMO, PRUEBAS, EXCAVACION, RELLENO, HERRAMIENTAS, MANO DE OBRA Y ACARREO DE MATERIALES AL SITIO DE SU COLOCACION.","ML ","20.0000",0,"CERO PESOS 00/100 M.N.",0,259640]
[589313,"SUMINISTRO Y TENDIDO DE TUBERÍA DE CPVC-CTS, PARA CEMENTAR  DE 19 MM DE DIAM. INCLUYE: TRAZO, CONEXIONES (COPLES, CODOS, TEES, NIPLES, ETC), DESPERDICIOS, ENCOFRADO CON CONCRETO F'C=100 KG/CM2 DE 6 X 15 CMS DE SECCION, MATERIALES MENORES Y DE CONSUMO, PRUEBAS, EXCAVACIÓN, RELLENO, HERRAMIENTAS, MANO DE OBRA Y ACARREO DE MATERIALES AL SITIO DE SU COLOCACIÓN.","ML ","5.0000",0,"CERO PESOS 00/100 M.N.",0,259641]
[589314,"SUMINISTRO Y TENDIDO DE TUBERIA DE CPVC-CTS, PARA CEMENTAR  DE 25 MM DE DIAM. INCLUYE: TRAZO, CONEXIONES (COPLES, CODOS, TEES, NIPLES, ETC), DESPERDICIOS, ENCOFRADO CON CONCRETO F'C=100 KG/CM2 DE 6 X 15 CMS DE SECCION, MATERIALES MENORES Y DE CONSUMO, PRUEBAS, EXCAVACION, RELLENO, HERRAMIENTAS, MANO DE OBRA Y ACARREO DE MATERIALES AL SITIO DE SU COLOCACION.","ML ","5.0000",0,"CERO PESOS 00/100 M.N.",0,259642]
[589316,"SUMINISTRO Y TENDIDO DE TUBERIA DE CPVC-CTS, PARA CEMENTAR  DE 38 MM DE DIAM. INCLUYE: TRAZO, CONEXIONES (COPLES, CODOS, TEES, NIPLES, ETC), DESPERDICIOS, ENCOFRADO CON CONCRETO F'C=100 KG/CM2 DE 6 X 15 CMS DE SECCION, MATERIALES MENORES Y DE CONSUMO, PRUEBAS, EXCAVACION, RELLENO, HERRAMIENTAS, MANO DE OBRA Y ACARREO DE MATERIALES AL SITIO DE SU COLOCACION.","ML ","15.0000",0,"CERO PESOS 00/100 M.N.",0,259643]
[589317,"SUMINISTRO Y TENDIDO DE TUBERIA DE CPVC-CTS, PARA CEMENTAR  DE 50 MM DE DIAM. INCLUYE: TRAZO, CONEXIONES (COPLES, CODOS, TEES, NIPLES, ETC), DESPERDICIOS, ENCOFRADO CON CONCRETO F'C=100 KG/CM2 DE 6 X 15 CMS DE SECCION, MATERIALES MENORES Y DE CONSUMO, PRUEBAS, EXCAVACION, RELLENO, HERRAMIENTAS, MANO DE OBRA Y ACARREO DE MATERIALES AL SITIO DE SU COLOCACION.","ML ","20.0000",0,"CERO PESOS 00/100 M.N.",0,259644]
[591414,"SUMINISTRO Y COLOCACION DE VALVULA DE ESFERA (BOLA) EXTREMOS ROSCADOS 2\" (51 MM) DE DIAMETRO. MCA URREA, FIG. 550,  INCLUYE: MATERIALES MENORES Y DE CONSUMO, HERRAMIENTAS, PRUEBAS, LIMPIEZA, MANO DE OBRA Y ACARREOS DE MATERIALES AL SITIO DE SU COLOCACION.","PZA","1.0000",0,"CERO PESOS 00/100 M.N.",0,259646]
[597109,"SUMINISTRO Y COLOCACION  DE CISTERNA PREFABRICADA DE 10 M3 DE CAPACIDAD, FORMADA A BASE DE SUMINISTRO E INSTALACION DE 2 (DOS) CISTERNAS PREFABRICADA DE CONCRETO F`C=250 KG/CM2, ARMADA CON ACERO DE REFUERZO F`Y= 5000 KG/CM2, PARA UNA CAPACIDAD DE 5,000 LTS. APROXIMADAMENTE, INCLUYE: FLETE, GRUA, TRAZO, LIMPIEZA, EXCAVACIONES EN MATERIAL TIPO \"A\" Y/O \"B\",  NIVELACION, AFINE, CONFORMACION DEL TERRENO RESULTANTE, INTERCONEXION DE LAS 2 CISTERNAS CON TUBERIA Y CONEXIONES DE PVC CED. 40 DE 6\" DE DIAMETRO, FIRME DE CONCRETO F´C= 150 KG/CM2, ARMADO CON MALLA ELECTROSOLDADE 6 X 6-10/10 DE 10 CMS. DE ESPESOR,  BROCALES, TAPAS METALICA DE FO.FO. PARA REGISTRO, AGUA PARA LLENADO DE CISTERNA DURANTE EL RELLENO, RELLENOS A VOLTEO Y RELLENOS COMPACTADOS AL 90% DE SU PVSM., DESPERDICIOS, PRUEBAS, EQUIPO, GARANTIA POR ESCRITO DE POR LO MENOS DE 5 AÑO,  HERRAMIENTA, MANO DE OBRA Y RETIRO DE MATERIAL SOBRANTE PRODUCTO DE EXCAVACION FUERA DE LA OBRA. ","PZA","1.0000",0,"CERO PESOS 00/100 M.N.",0,259651]
[918827,"SUMINISTRO Y COLOCACION DE VALVULA ESFERA CPVC PRIMAFLOW DE 19 MM. DE DIAMETRO, INCLUYE: MATERIALES MENORES, PRUEBAS Y ACARREO DE MATERIALES AL SITIO DE SU COLOCACION.","PZA","2.0000",0,"CERO PESOS 00/100 M.N.",0,259653]
[null,"RESUMEN DE PARTIDAS"]
["BAS-CON-06078","TERMINACIÓN DE EDIFICIO “C” (ACABADOS Y CANCELERÍAS), CONSTRUCCIÓN DE CASETA PARA HIDRONEUMÁTICO E INSTALACIONES ELÉCTRICAS EN OBRA EXTERIOR, EN EL JARDÍN DE NIÑOS GABRIELA MISTRAL CCT 14DJN0484D, UBICADO EN LA LOCALIDAD VILLA DE GARCÍA MÁRQUEZ (EL TARENGO NUEVO), MUNICIPIO DE LA BARCA, JALISCO.",null,null,null,null,{"$f":"G17","v":"$ 0.00 "}]
["C","EDIFICIO C",null,null,null,null,{"$f":"G18","v":"$ 0.00 "}]
["C.01(355)","RECUBRIMIENTOS Y ACABADOS                         ",null,null,null,null,{"$f":"G19","v":"$ 0.00 "}]
["C.02(372)","PISOS                                             ",null,null,null,null,{"$f":"G21","v":"$ 0.00 "}]
["C.03(382)","ELEMENTOS COMPLEMENTARIOS DE ALBAÑILERIA          ",null,null,null,null,{"$f":"G25","v":"$ 0.00 "}]
["C.04(390)","CARPINTERIA                                       ",null,null,null,null,{"$f":"G27","v":"$ 0.00 "}]
["C.05(393)","PINTURA                                           ",null,null,null,null,{"$f":"G29","v":"$ 0.00 "}]
["C.06(410)","CANCELERIA, HERRERIA, ALUMINIO, VIDRIOS Y CHAPAS  ",null,null,null,null,{"$f":"G34","v":"$ 0.00 "}]
["C.07(510)","INSTALACION ELECTRICA EN EDIFICIO                 ",null,null,null,null,{"$f":"G38","v":"$ 0.00 "}]
[15,"CUARTO DE MAQUINAS",null,null,null,null,{"$f":"G41","v":"$ 0.00 "}]
["15.01(150)","TRABAJOS PRELIMINARES                             ",null,null,null,null,{"$f":"G42","v":"$ 0.00 "}]
["15.02(160)","CIMENTACION                                       ",null,null,null,null,{"$f":"G49","v":"$ 0.00 "}]
["15.03(200)","ESTRUCTURA                                        ",null,null,null,null,{"$f":"G58","v":"$ 0.00 "}]
["15.04(310)","MUROS, CADENAS, CASTILLOS Y REPIZONES.            ",null,null,null,null,{"$f":"G62","v":"$ 0.00 "}]
["15.05(319)","ENTREPISOS, CUBIERTA Y ACABADOS DE AZOTEA         ",null,null,null,null,{"$f":"G67","v":"$ 0.00 "}]
["15.06(355)","RECUBRIMIENTOS Y ACABADOS                         ",null,null,null,null,{"$f":"G73","v":"$ 0.00 "}]
["15.07(372)","PISOS                                             ",null,null,null,null,{"$f":"G77","v":"$ 0.00 "}]
["15.08(382)","ELEMENTOS COMPLEMENTARIOS DE ALBAÑILERIA          ",null,null,null,null,{"$f":"G80","v":"$ 0.00 "}]
["15.09(393)","PINTURA                                           ",null,null,null,null,{"$f":"G82","v":"$ 0.00 "}]
["15.10(396)","LIMPIEZA                                          ",null,null,null,null,{"$f":"G87","v":"$ 0.00 "}]
["15.11(410)","CANCELERIA, HERRERIA, ALUMINIO, VIDRIOS Y CHAPAS  ",null,null,null,null,{"$f":"G89","v":"$ 0.00 "}]
["15.12(511)","INSTALACION ELECTRICA EN OBRA EXTERIOR            ",null,null,null,null,{"$f":"G93","v":"$ 0.00 "}]
["15.13(565)","INSTALACION HIDRAULICA, SANITARIA Y GAS EN O. EXT.",null,null,null,null,{"$f":"G102","v":"$ 0.00 "}]
["02","RED ELECTRICA",null,null,null,null,{"$f":"G109","v":"$ 0.00 "}]
["02.01(511)","INSTALACION ELECTRICA EN OBRA EXTERIOR            ",null,null,null,null,{"$f":"G110","v":"$ 0.00 "}]
["03","RED SANITARIA",null,null,null,null,{"$f":"G126","v":"$ 0.00 "}]
["03.01(565)","INSTALACION HIDRAULICA, SANITARIA Y GAS EN O. EXT.",null,null,null,null,{"$f":"G127","v":"$ 0.00 "}]
["04","RED HIDRAULICA",null,null,null,null,{"$f":"G132","v":"$ 0.00 "}]
["04.01(565)","INSTALACION HIDRAULICA, SANITARIA Y GAS EN O. EXT.",null,null,null,null,{"$f":"G133","v":"$ 0.00 "}]
[]
["IMPORTE CON LETRA (IVA INCLUIDO)",null,null,null,null,"SUBTOTAL M.N.",{"$f":"TEXT(G17,  \"$ #,##0.00 ;\")","v":"$ 0.00 "}]
[{"$f":"UPPER(CONVERTIRNUM(ROUND( G17 * 1.16, 2)))","v":"CERO PESOS 00/100 M.N."},null,null,null,null,"IVA M.N.",{"$f":"TEXT(ROUND( G17 * 0.16, 2),  \"$ #,##0.00 ;\")","v":"$ 0.00 "}]
[null,null,null,null,null,"TOTAL M.N.",{"$f":"TEXT(ROUND( G17 * 1.16, 2),  \"$ #,##0.00 ;\")","v":"$ 0.00 "}]